bitfinex/quotes_BTCUSD_20240703
["timestamp","ask_amount","ask_price","bid_price","bid_amount"]
[1720032821255,0.00173,60387.0,60386.0,1.86752577]
[1720032821410,0.0599,60385.0,60363.0,0.000924]
[1720032821610,0.241761,60364.0,60363.0,0.000924]
[1720032821801,1.04371319,60364.0,60363.0,0.000924]
[1720032822012,0.53474553,60364.0,60363.0,0.000924]
[1720032822219,0.20342253,60364.0,60363.0,0.000924]
[1720032822426,0.64986254,60364.0,60363.0,0.000924]
[1720032822628,1.01118554,60364.0,60363.0,0.001924]
[1720032822899,1.12948233,60364.0,60363.0,0.001924]
[1720032823254,1.12948233,60364.0,60363.0,0.000924]
[1720032823255,1.02338233,60364.0,60363.0,0.000924]
[1720032823469,1.12948233,60364.0,60363.0,0.000924]
[1720032823830,1.24358233,60364.0,60363.0,0.000924]
[1720032824008,1.1615056,60364.0,60363.0,0.000924]
[1720032824622,1.1565056,60364.0,60363.0,0.000924]
[1720032824856,1.1625056,60364.0,60363.0,0.000924]
[1720032826042,1.4938286,60364.0,60363.0,0.000924]
[1720032827265,1.38083,60364.0,60363.0,0.000924]
[1720032827468,1.49359685,60364.0,60363.0,0.000924]
[1720032827667,1.4185003,60364.0,60363.0,0.000924]
[1720032830580,1.41850861,60364.0,60363.0,0.000924]
[1720032832925,1.25784761,60364.0,60363.0,0.000924]
[1720032833454,1.42350861,60364.0,60363.0,0.000924]
[1720032833670,1.38583,60364.0,60363.0,0.000924]
[1720032833899,1.75481612,60364.0,60363.0,0.000924]
[1720032834093,1.77477412,60364.0,60363.0,0.000924]
[1720032834449,1.77477403,60364.0,60363.0,0.000924]
[1720032840313,1.77501887,60364.0,60363.0,0.000924]
[1720032841578,2.46766487,60364.0,60363.0,0.000924]
[1720032841883,2.59766487,60364.0,60363.0,0.000924]
[1720032842100,2.59766487,60364.0,60358.0,0.009185]
[1720032842101,2.155625,60359.0,60358.0,0.009185]
[1720032842331,2.155625,60359.0,60349.0,0.009196]
[1720032842332,0.8585,60350.0,60349.0,0.009196]
[1720032842514,2.42400787,60350.0,60349.0,0.009196]
[1720032843293,2.45400787,60350.0,60349.0,0.009196]
[1720032843907,2.97577093,60350.0,60349.0,0.009196]
[1720032844080,4.08394536,60350.0,60349.0,0.009196]
[1720032844276,2.96169236,60350.0,60349.0,0.009196]
[1720032844476,1.81940787,60350.0,60349.0,0.009196]
[1720032844677,0.31496629,60350.0,60349.0,0.1704948]
[1720032844893,0.1426,60363.0,60355.0,0.03]
[1720032845124,0.2202,60378.0,60349.0,0.24965062]
[1720032845125,0.03,60368.0,60352.0,0.03]
[1720032845373,0.82839,60358.0,60357.0,0.08015582]
[1720032845582,1.159746,60358.0,60357.0,0.10315582]
[1720032845943,1.491102,60358.0,60357.0,0.10315582]
[1720032846674,1.491102,60358.0,60357.0,0.1832988]
[1720032846910,1.491102,60358.0,60355.0,0.004]
[1720032846911,1.189784,60356.0,60355.0,0.004]
[1720032847100,1.189784,60356.0,60349.0,0.010196]
[1720032847101,0.1957,60350.0,60349.0,0.010196]
[1720032847259,1.22749696,60350.0,60349.0,0.009196]
[1720032847571,1.55889696,60350.0,60349.0,0.009196]
[1720032847976,1.89029696,60350.0,60349.0,0.009196]
[1720032849053,1.89092276,60350.0,60349.0,0.009196]
[1720032849254,2.13692276,60350.0,60349.0,0.009196]
[1720032849410,2.21253399,60350.0,60349.0,0.009196]
[1720032850041,2.21381986,60350.0,60349.0,0.009196]
[1720032850579,2.24381986,60350.0,60349.0,0.009196]
[1720032850721,2.21381986,60350.0,60349.0,0.009196]
[1720032850920,2.24381986,60350.0,60349.0,0.009196]
[1720032851281,2.43411986,60350.0,60349.0,0.009196]
[1720032851436,2.44111986,60350.0,60349.0,0.010196]
[1720032851879,2.59151986,60350.0,60349.0,0.010196]
[1720032852307,2.4764,60350.0,60349.0,0.010196]
[1720032852523,2.40119782,60350.0,60349.0,0.010196]
[1720032852712,2.92289782,60350.0,60349.0,0.010196]
[1720032853874,2.92189782,60350.0,60349.0,0.010196]
[1720032854076,2.75619782,60350.0,60349.0,0.010196]
[1720032854286,2.75619782,60350.0,60349.0,0.011196]
[1720032854287,2.76319782,60350.0,60349.0,0.011196]
[1720032854521,2.92289782,60350.0,60349.0,0.009196]
[1720032854711,3.22289782,60350.0,60349.0,0.009196]
[1720032854969,4.26215082,60350.0,60349.0,0.010196]
[1720032855604,4.18559279,60350.0,60349.0,0.010196]
[1720032855813,4.26749911,60350.0,60349.0,0.011196]
[1720032856261,4.58816097,60350.0,60349.0,0.011196]
[1720032856468,0.225744,60334.0,60333.0,0.009196]
[1720032856679,0.89696722,60334.0,60333.0,0.009196]
[1720032856908,1.65994322,60334.0,60333.0,0.009196]
[1720032857145,1.99143122,60334.0,60333.0,0.009196]
[1720032857612,1.63023579,60334.0,60333.0,0.009196]
[1720032857824,0.02970743,60347.0,60337.0,0.03]
[1720032858026,0.497169,60342.0,60341.0,0.11044839]
[1720032858237,0.165713,60345.0,60344.0,0.03]
[1720032858469,0.165719,60343.0,60342.0,0.00331399]
[1720032858679,0.331427,60345.0,60342.0,0.02631399]
[1720032858884,0.165716,60344.0,60342.0,0.02631399]
[1720032859091,0.165716,60344.0,60343.0,0.1602988]
[1720032859295,0.165716,60344.0,60343.0,0.1832988]
[1720032859508,0.497149,60344.0,60343.0,0.1832988]
[1720032860038,0.498149,60344.0,60343.0,0.1832988]
[1720032860291,0.829582,60344.0,60343.0,0.1832988]
[1720032860514,0.828582,60344.0,60343.0,0.1832988]
[1720032860987,0.829582,60344.0,60343.0,0.1832988]
[1720032861416,0.829582,60344.0,60343.0,0.1862988]
[1720032861670,0.829582,60344.0,60343.0,0.1832988]
[1720032862081,0.830582,60344.0,60343.0,0.1902988]
[1720032862249,0.829582,60344.0,60343.0,0.1832988]
[1720032862454,0.498149,60344.0,60343.0,0.1832988]
[1720032862855,0.165716,60344.0,60343.0,0.2132988]
[1720032863086,0.165716,60344.0,60343.0,0.1902988]
[1720032863419,0.001,60344.0,60343.0,0.2202988]
[1720032863532,0.001,60344.0,60343.0,0.1902988]
[1720032863946,0.165712,60346.0,60343.0,0.1832988]
[1720032864142,0.001,60344.0,60343.0,0.19461281]
[1720032864345,0.002,60344.0,60343.0,0.23161281]
[1720032864690,0.001,60344.0,60343.0,0.33721281]
[1720032865093,0.001,60344.0,60343.0,0.33021281]
[1720032865266,0.165706,60348.0,60344.0,0.03]
[1720032865468,0.165706,60348.0,60345.0,0.1866127]
[1720032866085,0.165706,60348.0,60346.0,0.03]
[1720032866267,0.165692,60353.0,60350.0,0.1812]
[1720032866483,0.09980061,60352.0,60351.0,0.1602988]
[1720032866745,0.09980061,60352.0,60351.0,0.26058826]
[1720032866944,0.09980061,60352.0,60351.0,0.25727467]
[1720032867672,0.1338539,60352.0,60351.0,0.25727467]
[1720032868272,0.1338539,60352.0,60351.0,0.1832988]
[1720032868273,0.13385377,60352.0,60351.0,0.1832988]
[1720032868490,0.13385377,60352.0,60351.0,0.2576865]
[1720032868699,0.13385377,60352.0,60351.0,0.23289197]
[1720032869503,0.13385377,60352.0,60351.0,0.1842988]
[1720032870927,0.03405316,60352.0,60351.0,0.1842988]
[1720032871268,0.1,60352.0,60351.0,0.1842988]
[1720032871473,0.03405316,60352.0,60351.0,0.21459137]
[1720032871673,0.166518,60358.0,60354.0,0.03]
[1720032871826,0.166518,60358.0,60355.0,0.1832988]
[1720032871827,0.02212228,60357.0,60355.0,0.1832988]
[1720032872030,0.166518,60358.0,60355.0,0.1832988]
[1720032872247,0.02212247,60357.0,60355.0,0.1832988]
[1720032873583,0.02312247,60357.0,60355.0,0.1922988]
[1720032873761,0.02312247,60357.0,60355.0,0.1992988]
[1720032873762,0.02212247,60356.0,60355.0,0.1992988]
[1720032874544,0.02212247,60356.0,60355.0,0.22959137]
[1720032874747,0.002,60357.0,60356.0,1.45667657]
[1720032874924,0.002,60357.0,60356.0,1.98956948]
[1720032875125,0.001,60357.0,60356.0,1.93997537]
[1720032875344,0.00084,60358.0,60357.0,1.30605557]
[1720032875549,0.00084,60358.0,60357.0,1.53891831]
[1720032875860,0.00084,60358.0,60357.0,1.53891895]
[1720032876513,0.00184,60358.0,60357.0,1.16499337]
[1720032877291,0.00284,60358.0,60357.0,1.17599337]
[1720032878123,0.00184,60358.0,60357.0,1.16899337]
[1720032878520,0.26114,60358.0,60357.0,1.05599337]
[1720032878797,0.26114,60358.0,60357.0,0.014]
[1720032878798,0.95931973,60358.0,60357.0,0.014]
[1720032879021,1.75173916,60358.0,60357.0,0.028]
[1720032879237,1.56143916,60358.0,60357.0,0.042]
[1720032879399,0.165698,60351.0,60345.0,0.2608]
[1720032879604,0.01084573,60350.0,60346.0,0.1602988]
[1720032880647,0.17654573,60350.0,60346.0,0.1602988]
[1720032880869,0.17654873,60349.0,60346.0,0.1602988]
[1720032881094,0.165703,60349.0,60347.0,0.023]
[1720032881296,0.01641055,60348.0,60347.0,0.023]
[1720032881455,0.01641055,60348.0,60346.0,0.023]
[1720032882025,0.01641055,60348.0,60347.0,0.1602988]
[1720032882137,0.01641055,60348.0,60347.0,0.1832988]
[1720032882340,0.18311555,60348.0,60347.0,0.1932988]
[1720032883002,0.51552655,60348.0,60347.0,0.1932988]
[1720032883144,0.51652655,60348.0,60347.0,0.1932988]
[1720032884456,0.51652655,60348.0,60347.0,0.1832988]
[1720032884457,0.51265956,60348.0,60347.0,0.1832988]
[1720032884890,0.497116,60348.0,60347.0,0.1832988]
[1720032885107,0.51265845,60348.0,60347.0,0.2132988]
[1720032885355,0.51265845,60348.0,60347.0,0.21690322]
[1720032885356,0.01554245,60348.0,60347.0,0.21690322]
[1720032885556,0.02970743,60357.0,60352.0,0.03]
[1720032885557,0.165687,60355.0,60352.0,0.03]
[1720032885760,0.165683,60357.0,60356.0,0.03]
[1720032885962,0.51298444,60357.0,60356.0,0.2132988]
[1720032886297,0.18162344,60357.0,60356.0,0.1832988]
[1720032886485,0.51298444,60357.0,60356.0,0.1832988]
[1720032886690,0.84434544,60357.0,60356.0,0.1832988]
[1720032887493,0.90031882,60357.0,60356.0,0.1832988]
[1720032887707,0.87833735,60357.0,60356.0,0.1832988]
[1720032888594,0.88033735,60357.0,60356.0,0.1832988]
[1720032889475,0.88133735,60357.0,60356.0,0.1832988]
[1720032890996,0.88124201,60357.0,60356.0,0.1832988]
[1720032891344,0.88124201,60357.0,60356.0,0.2132988]
[1720032891345,0.07481848,60357.0,60356.0,0.2132988]
[1720032891572,0.01971318,60357.0,60356.0,0.1832988]
[1720032891775,0.18539318,60357.0,60356.0,0.18661213]
[1720032891953,0.18539318,60357.0,60356.0,0.1832988]
[1720032892163,0.01971318,60357.0,60356.0,0.4790988]
[1720032894092,0.003,60357.0,60356.0,0.4490988]
[1720032894310,0.02006799,60357.0,60356.0,0.4490988]
[1720032895305,0.01706799,60357.0,60356.0,0.4790988]
[1720032895527,0.01706799,60357.0,60356.0,0.4860988]
[1720032895528,0.01806799,60357.0,60356.0,0.4860988]
[1720032895725,0.01906799,60357.0,60356.0,0.4920988]
[1720032897210,0.01406799,60357.0,60356.0,0.4920988]
[1720032897409,0.01929095,60357.0,60356.0,0.4620988]
[1720032897843,0.01929122,60357.0,60356.0,0.4620988]
[1720032898040,0.01929122,60357.0,60356.0,0.4920988]
[1720032902551,0.01868534,60357.0,60356.0,0.4920988]
[1720032902778,0.01868534,60357.0,60356.0,0.49239137]
[1720032902963,0.01868534,60357.0,60356.0,0.4920988]
[1720032903171,0.002,60357.0,60356.0,0.49239137]
[1720032903543,0.01941596,60357.0,60356.0,0.4620988]
[1720032903747,0.01941596,60357.0,60356.0,0.4920988]
[1720032904271,0.01941596,60357.0,60356.0,0.49239137]
[1720032904740,0.01941596,60357.0,60356.0,0.4920988]
[1720032906527,0.002,60357.0,60356.0,0.4920988]
[1720032907195,0.01941164,60357.0,60356.0,0.4920988]
[1720032907366,0.01941164,60357.0,60356.0,0.49239137]
[1720032907568,0.01941164,60357.0,60356.0,0.4920988]
[1720032907766,0.01941164,60357.0,60356.0,0.49239137]
[1720032909535,0.165672,60361.0,60359.0,0.03]
[1720032909733,0.165672,60361.0,60360.0,0.1832988]
[1720032909982,0.165672,60361.0,60360.0,0.2132988]
[1720032909983,0.0563225,60361.0,60360.0,0.2132988]
[1720032910228,0.165657,60366.0,60362.0,0.03]
[1720032910399,0.165659,60365.0,60363.0,0.1832988]
[1720032910662,0.22015667,60365.0,60363.0,0.1832988]
[1720032910872,0.05449767,60364.0,60363.0,0.1832988]
[1720032911720,0.165659,60365.0,60363.0,0.1832988]
[1720032911992,0.496966,60367.0,60363.0,0.1832988]
[1720032912218,0.002,60364.0,60363.0,0.1832988]
[1720032912372,0.005,60364.0,60363.0,0.1832988]
[1720032912739,0.003,60364.0,60363.0,0.1832988]
[1720032913146,0.165659,60365.0,60363.0,0.1832988]
[1720032914197,0.169659,60365.0,60363.0,0.1832988]
[1720032914406,0.169659,60365.0,60364.0,0.03]
[1720032914742,0.265652,60368.0,60365.0,0.03]
[1720032914973,0.2109272,60367.0,60366.0,0.1832988]
[1720032915174,0.5422332,60367.0,60366.0,0.1832988]
[1720032916318,0.5422332,60367.0,60366.0,0.1882988]
[1720032916529,0.54248712,60367.0,60366.0,0.1882988]
[1720032917506,0.54248712,60367.0,60366.0,0.1932988]
[1720032919456,0.05582496,60367.0,60366.0,0.1932988]
[1720032919810,0.05584334,60367.0,60366.0,0.3889548]
[1720032920011,0.21118082,60373.0,60368.0,0.03]
[1720032920324,0.05584074,60372.0,60369.0,0.2132988]
[1720032920748,0.05584074,60371.0,60370.0,0.03]
[1720032920950,0.05584074,60371.0,60370.0,0.2132988]
[1720032922010,0.01029761,60371.0,60370.0,0.2132988]
[1720032922575,0.05518357,60373.0,60370.0,0.2132988]
[1720032922787,0.0551848,60372.0,60371.0,0.1832988]
[1720032922984,0.481538,60380.0,60375.0,0.03]
[1720032923364,0.481538,60380.0,60369.0,0.331295]
[1720032923365,0.05518415,60379.0,60376.0,0.21574109]
[1720032923568,0.05518415,60379.0,60376.0,0.21661102]
[1720032923774,0.1,60381.0,60377.0,0.03]
[1720032923775,0.04472151,60378.0,60377.0,0.03]
[1720032923945,0.1550202,60380.0,60377.0,0.1832988]
[1720032924085,0.01029869,60379.0,60378.0,0.1602988]
[1720032924304,0.05502048,60379.0,60378.0,0.1832988]
[1720032924708,0.22164048,60379.0,60378.0,0.1832988]
[1720032925290,0.22164048,60379.0,60378.0,0.1922988]
[1720032925489,0.22364048,60379.0,60378.0,0.2012988]
[1720032925739,0.58458791,60379.0,60378.0,0.041]
[1720032925924,1.03462791,60379.0,60378.0,0.041]
[1720032926268,1.03479688,60379.0,60378.0,0.041]
[1720032927099,1.00508945,60379.0,60378.0,0.041]
[1720032927931,1.18969688,60379.0,60378.0,0.041]
[1720032928274,2.17247688,60379.0,60378.0,0.018]
[1720032928465,2.2629384,60379.0,60378.0,0.018]
[1720032929189,2.2619384,60379.0,60378.0,0.009]
[1720032929416,2.27059449,60379.0,60378.0,0.01]
[1720032929637,2.30059449,60379.0,60378.0,0.01]
[1720032930840,2.29859449,60379.0,60378.0,0.001]
[1720032931057,2.30859449,60379.0,60378.0,0.002]
[1720032931432,2.27859449,60379.0,60378.0,0.002]
[1720032932634,2.13328743,60379.0,60378.0,0.002]
[1720032932829,2.27969603,60379.0,60378.0,0.002]
[1720032933608,2.30969603,60379.0,60378.0,0.002]
[1720032933831,2.27969603,60379.0,60378.0,0.002]
[1720032934033,2.29970302,60379.0,60378.0,0.002]
[1720032935926,2.15329442,60379.0,60378.0,0.002]
[1720032936125,2.29999781,60379.0,60378.0,0.002]
[1720032936372,2.32999781,60379.0,60378.0,0.002]
[1720032936576,2.32999788,60379.0,60378.0,0.002]
[1720032937543,2.66123788,60379.0,60378.0,0.002]
[1720032937719,3.38334094,60379.0,60378.0,0.002]
[1720032937919,4.01451668,60379.0,60378.0,0.002]
[1720032938126,1.81728443,60367.0,60366.0,0.4676]
[1720032938323,2.09317249,60367.0,60366.0,0.4676]
[1720032938527,2.19317249,60367.0,60366.0,0.4676]
[1720032939083,2.28581676,60367.0,60366.0,0.4676]
[1720032939292,1.18947043,60357.0,60354.0,0.08015582]
[1720032939531,1.18947043,60357.0,60351.0,0.116]
[1720032939532,1.24587675,60357.0,60351.0,0.116]
[1720032940492,1.24587675,60357.0,60352.0,0.023]
[1720032940693,1.24587675,60357.0,60353.0,0.08015582]
[1720032940914,1.24587675,60357.0,60354.0,0.023]
[1720032941136,1.24587675,60357.0,60356.0,0.005913]
[1720032941349,1.24587675,60357.0,60356.0,0.028913]
[1720032941545,1.24687675,60357.0,60356.0,0.028913]
[1720032942127,1.21716932,60357.0,60356.0,0.028913]
[1720032942324,1.24704094,60357.0,60356.0,0.028913]
[1720032943731,1.58694094,60357.0,60356.0,0.028913]
[1720032945479,1.43734094,60357.0,60356.0,0.005913]
[1720032945763,1.38077043,60357.0,60356.0,0.005913]
[1720032945932,1.56194309,60357.0,60356.0,0.005913]
[1720032949073,1.56111295,60357.0,60356.0,0.005913]
[1720032949502,1.50437043,60357.0,60356.0,0.005913]
[1720032949706,1.56111282,60357.0,60356.0,0.005913]
[1720032951517,1.43751282,60357.0,60356.0,0.005913]
[1720032952212,1.42722953,60357.0,60356.0,0.005913]
[1720032952428,1.43752414,60357.0,60356.0,0.005913]
[1720032952638,1.43751834,60357.0,60356.0,0.005913]
[1720032953085,1.24721834,60357.0,60356.0,0.005913]
[1720032953294,1.24721834,60357.0,60356.0,0.028913]
[1720032953505,1.21751091,60357.0,60356.0,0.028913]
[1720032953717,1.24721834,60357.0,60356.0,0.028913]
[1720032953942,1.20076504,60357.0,60356.0,0.028913]
[1720032954382,1.24801781,60357.0,60356.0,0.028913]
[1720032955497,1.2376673,60357.0,60356.0,0.028913]
[1720032955703,1.24796231,60357.0,60356.0,0.028913]
[1720032958732,1.24815181,60357.0,60356.0,0.028913]
[1720032961389,1.24815762,60357.0,60356.0,0.028913]
[1720032961732,1.19047043,60357.0,60356.0,0.028913]
[1720032961936,1.24818427,60357.0,60356.0,0.028913]
[1720032964443,1.19047043,60357.0,60356.0,0.028913]
[1720032964649,1.24824131,60357.0,60356.0,0.028913]
[1720032964868,1.19047043,60357.0,60356.0,0.028913]
[1720032965074,1.2483587,60357.0,60356.0,0.028913]
[1720032967832,1.19047043,60357.0,60356.0,0.028913]
[1720032968059,1.32525475,60357.0,60356.0,0.028913]
[1720032968479,1.24915475,60357.0,60356.0,0.028913]
[1720032968679,1.32525475,60357.0,60356.0,0.028913]
[1720032969239,1.26657043,60357.0,60356.0,0.028913]
[1720032969446,1.32534725,60357.0,60356.0,0.028913]
[1720032970508,1.32537664,60357.0,60356.0,0.028913]
[1720032970846,1.55856921,60357.0,60356.0,0.005913]
[1720032971086,3.7806299,60357.0,60356.0,0.00584649]
[1720032971291,1.18964543,60348.0,60347.0,0.000924]
[1720032971505,2.04891007,60348.0,60347.0,0.000924]
[1720032972740,2.1428641,60348.0,60347.0,0.000924]
[1720032973892,2.2571641,60348.0,60347.0,0.000924]
[1720032974098,2.2591641,60348.0,60347.0,0.000924]
[1720032974547,2.56508931,60348.0,60347.0,0.000924]
[1720032974718,3.33147462,60348.0,60347.0,0.000924]
[1720032974941,3.17533691,60348.0,60347.0,0.000924]
[1720032975099,3.32952951,60348.0,60347.0,0.000924]
[1720032975299,3.33352951,60348.0,60347.0,0.000924]
[1720032975562,3.32752951,60348.0,60347.0,0.000924]
[1720032975745,2.62765051,60348.0,60347.0,0.000924]
[1720032975945,2.64165051,60348.0,60347.0,0.000924]
[1720032976150,2.60396003,60348.0,60347.0,0.000924]
[1720032976353,2.63396003,60348.0,60347.0,0.000924]
[1720032976669,2.63996003,60348.0,60347.0,0.000924]
[1720032977011,2.61996003,60348.0,60347.0,0.000924]
[1720032977449,2.64796003,60348.0,60347.0,0.000924]
[1720032977658,2.63371487,60348.0,60347.0,0.000924]
[1720032978088,2.64771496,60348.0,60347.0,0.000924]
[1720032979093,2.61771496,60348.0,60347.0,0.000924]
[1720032979656,2.52328392,60348.0,60347.0,0.000924]
[1720032979858,2.55328392,60348.0,60347.0,0.000924]
[1720032980135,2.63785946,60348.0,60347.0,0.000924]
[1720032980295,2.66785946,60348.0,60347.0,0.000924]
[1720032980924,2.51398959,60348.0,60347.0,0.000924]
[1720032981102,2.57332688,60348.0,60347.0,0.000924]
[1720032984340,2.73368994,60348.0,60347.0,0.000924]
[1720032984668,1.72861588,60348.0,60347.0,0.000924]
[1720032985313,1.39720488,60348.0,60347.0,0.000924]
[1720032985522,1.03608645,60348.0,60347.0,0.267024]
[1720032985734,1.03608645,60348.0,60347.0,0.290024]
[1720032985735,1.04557172,60348.0,60347.0,0.290024]
[1720032985942,1.37698272,60348.0,60347.0,0.267024]
[1720032986176,1.36298272,60348.0,60347.0,0.267024]
[1720032986375,1.34898272,60348.0,60347.0,0.267024]
[1720032986808,1.36298272,60348.0,60347.0,0.267024]
[1720032987017,1.56438272,60348.0,60347.0,0.000924]
[1720032987419,1.37398272,60348.0,60347.0,0.000924]
[1720032987644,1.36762897,60348.0,60347.0,0.000924]
[1720032988055,0.07811575,60348.0,60347.0,0.4273228]
[1720032988265,0.18999796,60348.0,60347.0,0.4503228]
[1720032988469,0.01029296,60348.0,60347.0,0.4803228]
[1720032988668,0.01829296,60348.0,60347.0,0.4813228]
[1720032988838,0.02629296,60348.0,60347.0,0.4823228]
[1720032989041,0.02629296,60348.0,60347.0,0.4803228]
[1720032989042,0.01829296,60348.0,60347.0,0.4803228]
[1720032989383,0.02029296,60348.0,60347.0,0.4933228]
[1720032989587,0.01229296,60348.0,60347.0,0.98373937]
[1720032989792,0.01129296,60348.0,60347.0,1.30915537]
[1720032990042,0.002,60348.0,60347.0,1.31615537]
[1720032990229,0.003,60348.0,60347.0,1.32215537]
[1720032991902,0.165675,60359.0,60356.0,0.03]
[1720032992057,0.165675,60359.0,60357.0,0.2891]
[1720032992058,0.01029489,60358.0,60357.0,0.2891]
[1720032992506,0.01029489,60358.0,60357.0,0.4493988]
[1720032992858,0.165676,60359.0,60357.0,0.4493988]
[1720032993064,0.01029489,60358.0,60357.0,0.4493988]
[1720032993879,0.167676,60359.0,60357.0,0.4493988]
[1720032994079,0.01029554,60358.0,60357.0,0.4493988]
[1720032994893,0.17597354,60358.0,60357.0,0.4493988]
[1720032995282,0.17597354,60358.0,60357.0,0.4513988]
[1720032995481,0.17597354,60358.0,60357.0,0.4503988]
[1720032995704,0.17597354,60358.0,60357.0,0.4493988]
[1720032995923,0.17797354,60358.0,60357.0,0.4643988]
[1720032997226,0.17797357,60358.0,60357.0,0.4643988]
[1720032998407,0.50932957,60358.0,60357.0,0.4643988]
[1720033000167,0.870393,60358.0,60357.0,0.038]
[1720033000505,0.83039,60358.0,60357.0,0.038]
[1720033000719,0.84068545,60358.0,60357.0,0.038]
[1720033003728,0.87039271,60358.0,60357.0,0.038]
[1720033004560,0.84068528,60358.0,60357.0,0.038]
[1720033005448,0.87039271,60358.0,60357.0,0.038]
[1720033005658,0.84068528,60358.0,60357.0,0.038]
[1720033006658,0.87039271,60358.0,60357.0,0.038]
[1720033006896,0.84068528,60358.0,60357.0,0.038]
[1720033007102,1.24416703,60358.0,60357.0,0.015]
[1720033007304,1.57552303,60358.0,60357.0,0.015]
[1720033007535,1.67553471,60358.0,60357.0,0.015]
[1720033008269,1.67453471,60358.0,60357.0,0.008]
[1720033008666,1.67953471,60358.0,60357.0,0.008]
[1720033008980,1.67453471,60358.0,60357.0,0.008]
[1720033009175,0.828512,60349.0,60348.0,0.2693]
[1720033009379,0.83880728,60349.0,60348.0,0.2923]
[1720033010384,0.828512,60349.0,60348.0,0.2923]
[1720033010529,0.83880953,60349.0,60348.0,0.2923]
[1720033010904,0.50840453,60349.0,60348.0,0.2993]
[1720033011095,0.50840535,60349.0,60348.0,0.2993]
[1720033011501,0.5084056,60349.0,60348.0,0.2993]
[1720033012294,0.5094056,60349.0,60348.0,0.3033]
[1720033012533,0.0122986,60349.0,60348.0,0.4635988]
[1720033012737,0.0122986,60349.0,60348.0,0.4935988]
[1720033013507,0.331376,60355.0,60351.0,0.03]
[1720033013712,0.165695,60352.0,60351.0,0.1902988]
[1720033013889,0.17599381,60352.0,60351.0,0.1902988]
[1720033014090,0.17599381,60352.0,60351.0,0.3673988]
[1720033014791,0.01029881,60352.0,60351.0,0.36869137]
[1720033014995,0.1,60354.0,60353.0,0.03]
[1720033015234,0.01029892,60354.0,60353.0,0.2132988]
[1720033015579,0.165681,60357.0,60354.0,0.03]
[1720033015580,0.1102992,60356.0,60354.0,0.03]
[1720033015791,0.1,60356.0,60355.0,0.1832988]
[1720033015998,0.15295299,60356.0,60355.0,0.1832988]
[1720033017177,0.15290386,60356.0,60355.0,0.1832988]
[1720033018712,0.15490386,60356.0,60355.0,0.1832988]
[1720033018910,0.14460481,60356.0,60355.0,0.1832988]
[1720033019312,0.14360481,60356.0,60355.0,0.1832988]
[1720033019529,0.14260481,60356.0,60355.0,0.1832988]
[1720033019735,0.14360481,60356.0,60355.0,0.1902988]
[1720033020367,0.13589935,60356.0,60355.0,0.1902988]
[1720033020759,0.13689935,60356.0,60355.0,0.1972988]
[1720033020960,0.30258235,60356.0,60355.0,0.1972988]
[1720033022373,0.63394935,60356.0,60355.0,0.1972988]
[1720033022776,0.63374217,60356.0,60355.0,0.1972988]
[1720033023206,0.59905,60356.0,60355.0,0.1972988]
[1720033023419,0.63353459,60356.0,60355.0,0.1972988]
[1720033025183,0.63353459,60356.0,60355.0,0.014]
[1720033025184,1.44287602,60356.0,60355.0,0.014]
[1720033026058,1.40839143,60356.0,60355.0,0.014]
[1720033026261,1.44759941,60356.0,60355.0,0.014]
[1720033026533,1.44659941,60356.0,60355.0,0.007]
[1720033027303,1.44659941,60356.0,60347.0,0.266224]
[1720033027504,0.52681443,60349.0,60348.0,0.023913]
[1720033027709,0.86771998,60349.0,60348.0,0.023913]
[1720033027909,0.87801878,60349.0,60348.0,0.023913]
[1720033028714,0.8790611,60349.0,60348.0,0.1902118]
[1720033028918,0.8687623,60349.0,60348.0,0.1902118]
[1720033029117,0.8687623,60349.0,60348.0,0.1912118]
[1720033029283,0.86865822,60349.0,60348.0,0.1912118]
[1720033029487,0.86865822,60349.0,60348.0,0.1902118]
[1720033029692,0.86965822,60349.0,60348.0,0.1982118]
[1720033030569,0.830512,60349.0,60348.0,0.1982118]
[1720033031319,0.8697167,60349.0,60348.0,0.1982118]
[1720033033498,0.89942413,60349.0,60348.0,0.1982118]
[1720033033710,0.8697167,60349.0,60348.0,0.1982118]
[1720033034261,0.88002238,60349.0,60348.0,0.1982118]
[1720033034460,0.830512,60349.0,60348.0,0.1982118]
[1720033034661,0.88064687,60349.0,60348.0,0.1982118]
[1720033035066,0.50941266,60349.0,60348.0,0.1982118]
[1720033035701,0.17800766,60349.0,60348.0,0.2282118]
[1720033035900,0.01230566,60349.0,60348.0,0.22850437]
[1720033036277,0.01230566,60349.0,60348.0,0.2282118]
[1720033036695,0.01201338,60349.0,60348.0,0.2282118]
[1720033036908,0.01201338,60349.0,60348.0,0.22850437]
[1720033037111,0.01201338,60349.0,60348.0,0.2282118]
[1720033037517,0.01201338,60349.0,60348.0,0.22850437]
[1720033037722,0.01201338,60349.0,60348.0,0.2282118]
[1720033038342,0.00170772,60349.0,60348.0,0.22850437]
[1720033038545,0.01201229,60349.0,60348.0,0.34200437]
[1720033038752,0.00170772,60349.0,60348.0,0.65730937]
[1720033039212,0.01201234,60349.0,60348.0,1.32013137]
[1720033039398,0.01201234,60349.0,60348.0,1.39623137]
[1720033040691,0.01201234,60349.0,60348.0,1.69623137]
[1720033043652,0.01201234,60349.0,60348.0,1.39623137]
[1720033045422,0.01201363,60349.0,60348.0,1.39623137]
[1720033046173,0.01201363,60349.0,60348.0,1.69623137]
[1720033046710,0.01201363,60349.0,60348.0,1.39623137]
[1720033048095,0.01201363,60349.0,60348.0,1.32013137]
[1720033048747,0.01201287,60349.0,60348.0,0.4613118]
[1720033048999,0.01201287,60349.0,60348.0,0.1752118]
[1720033049000,0.58521987,60349.0,60348.0,0.1752118]
[1720033049182,0.6149273,60349.0,60348.0,0.1752118]
[1720033049390,0.95600342,60349.0,60348.0,0.1752118]
[1720033049921,0.6238907,60349.0,60348.0,0.1692118]
[1720033050091,0.6228907,60349.0,60348.0,0.1612118]
[1720033050329,0.6238907,60349.0,60348.0,0.1672118]
[1720033050542,0.6248907,60349.0,60348.0,0.1742118]
[1720033050744,0.6238907,60349.0,60348.0,0.1912118]
[1720033051019,0.5487907,60349.0,60348.0,0.1982118]
[1720033051832,0.8801957,60349.0,60348.0,0.1982118]
[1720033052036,0.88409403,60349.0,60348.0,0.1982118]
[1720033052379,0.86021943,60349.0,60348.0,0.037913]
[1720033052580,0.86021943,60349.0,60348.0,0.014913]